[Event "*** Biggest EVER Titled Tuesday"]
[Site "Chess.com"]
[Date "2018.04.17"]
[Round "3"]
[White "ABDELAZEEZ-M"]
[Black "BlackBoarder"]
[Result "1-0"]
[WhiteElo "2286"]
[BlackElo "2236"]
[TimeControl "180+2"]
[EndTime "13:36:34 PDT"]
[Termination "ABDELAZEEZ-M won by resignation"]

1. d4 {[%clk 0:03:00.2]} 1... e6 {[%clk 0:02:59.3]} 2. Nf3 {[%clk 0:03:01]} 2...
f5 {[%clk 0:02:59.3]} 3. c4 {[%clk 0:03:01.7]} 3... Nf6 {[%clk 0:02:42.1]} 4. g3
{[%clk 0:03:01.4]} 4... Be7 {[%clk 0:02:40.2]} 5. Bg2 {[%clk 0:03:02.1]} 5...
O-O {[%clk 0:02:37.9]} 6. O-O {[%clk 0:03:02.9]} 6... Ne4 {[%clk 0:02:37.9]} 7.
Qc2 {[%clk 0:02:58.3]} 7... Bf6 {[%clk 0:02:35.4]} 8. Nc3 {[%clk 0:02:56.8]}
8... d5 {[%clk 0:02:31.9]} 9. cxd5 {[%clk 0:02:57.3]} 9... exd5 {[%clk 0:02:32]}
10. Bf4 {[%clk 0:02:57.8]} 10... c6 {[%clk 0:02:31.4]} 11. Nxe4 {[%clk
0:02:54.5]} 11... dxe4 {[%clk 0:02:01.8]} 12. Ne5 {[%clk 0:02:47.6]} 12... Be6
{[%clk 0:01:35]} 13. Rfd1 {[%clk 0:02:40.4]} 13... Bd5 {[%clk 0:01:35.1]} 14.
Nc4 {[%clk 0:02:33.8]} 14... Bxc4 {[%clk 0:01:19.9]} 15. Qxc4+ {[%clk 0:02:33]}
15... Qd5 {[%clk 0:01:21]} 16. Rac1 {[%clk 0:02:31.9]} 16... Qxc4 {[%clk
0:01:16]} 17. Rxc4 {[%clk 0:02:32.2]} 17... Rd8 {[%clk 0:01:13.2]} 18. b4 {[%clk
0:02:24.5]} 18... Nd7 {[%clk 0:01:02.2]} 19. Bh3 {[%clk 0:02:24.4]} 19... g6
{[%clk 0:00:59]} 20. Be3 {[%clk 0:02:21.4]} 20... Nb6 {[%clk 0:00:57]} 21. Rcc1
{[%clk 0:02:19.3]} 21... Nd5 {[%clk 0:00:49.7]} 22. a3 {[%clk 0:02:18.1]} 22...
a6 {[%clk 0:00:30]} 23. Rc4 {[%clk 0:02:10.8]} 23... Rd6 {[%clk 0:00:30.1]} 24.
Bf4 {[%clk 0:02:08.7]} 24... Rd7 {[%clk 0:00:19.6]} 25. Be5 {[%clk 0:01:57.7]}
25... Bxe5 {[%clk 0:00:18]} 26. dxe5 {[%clk 0:01:58.7]} 26... Kf7 {[%clk
0:00:18.6]} 27. g4 {[%clk 0:01:53.8]} 27... Ke6 {[%clk 0:00:17.6]} 28. gxf5+
{[%clk 0:01:54.3]} 28... gxf5 {[%clk 0:00:19.5]} 29. Rxe4 {[%clk 0:01:55]} 29...
Rg8+ {[%clk 0:00:07]} 30. Kh1 {[%clk 0:01:46.6]} 30... Rg5 {[%clk 0:00:06.7]}
31. Red4 {[%clk 0:01:30.4]} 31... Kxe5 {[%clk 0:00:07.2]} 32. f4+ {[%clk
0:01:30.6]} 32... Nxf4 {[%clk 0:00:08.2]} 33. Rxd7 {[%clk 0:01:26.1]} 33... Nxh3
{[%clk 0:00:09]} 34. Rf1 {[%clk 0:01:27.4]} 34... Ke4 {[%clk 0:00:04.5]} 35.
Rxh7 {[%clk 0:01:26.6]} 35... Nf4 {[%clk 0:00:03.1]} 36. Rh4 {[%clk 0:01:26.9]}
36... Rg4 {[%clk 0:00:03.2]} 37. Rxg4 {[%clk 0:01:23.6]} 37... fxg4 {[%clk
0:00:05.1]} 38. Rd1 {[%clk 0:01:21.4]} 38... Nxe2 {[%clk 0:00:05.6]} 39. Rd7
{[%clk 0:01:22.2]} 39... b5 {[%clk 0:00:06.6]} 40. Rd6 {[%clk 0:01:22.4]} 40...
Nd4 {[%clk 0:00:07.5]} 41. Kg2 {[%clk 0:01:21.9]} 41... Nc2 {[%clk 0:00:06.9]}
42. Rxc6 {[%clk 0:01:21.1]} 42... Nxa3 {[%clk 0:00:07.7]} 43. Rxa6 {[%clk
0:01:22.4]} 43... Nc2 {[%clk 0:00:09.1]} 44. Rg6 {[%clk 0:01:23.1]} 44... Kf5
{[%clk 0:00:08]} 45. Rb6 {[%clk 0:01:23.2]} 45... Nd4 {[%clk 0:00:06.8]} 46. Kf2
{[%clk 0:01:20.8]} 46... Kf4 {[%clk 0:00:07.4]} 47. Rd6 {[%clk 0:01:20]} 47...
Ke4 {[%clk 0:00:08.2]} 48. Rd8 {[%clk 0:01:14.9]} 48... Kd3 {[%clk 0:00:06.5]}
49. Kg3 {[%clk 0:01:14.7]} 49... Kc4 {[%clk 0:00:05.2]} 50. Kxg4 {[%clk
0:01:15.5]} 50... Ne6 {[%clk 0:00:03.1]} 51. Re8 {[%clk 0:01:15.4]} 51... Nd4
{[%clk 0:00:02.8]} 52. Re4 {[%clk 0:01:15.8]} 52... Kd3 {[%clk 0:00:04.2]} 53.
Rxd4+ {[%clk 0:01:14.2]} 53... Kxd4 {[%clk 0:00:06.1]} 54. h4 {[%clk 0:01:15.5]}
54... Ke5 {[%clk 0:00:07.7]} 55. Kf3 {[%clk 0:01:15.1]} 55... Kf5 {[%clk
0:00:08.6]} 56. Ke3 {[%clk 0:01:16.2]} 56... Kg4 {[%clk 0:00:10.1]} 57. Kd4
{[%clk 0:01:17.6]} 1-0

[Event "*** Biggest EVER Titled Tuesday"]
[Site "Chess.com"]
[Date "2018.04.17"]
[Round "3"]
[White "David_Paravyan"]
[Black "Blitzstream"]
[Result "0-1"]
[WhiteElo "2668"]
[BlackElo "2448"]
[TimeControl "180+2"]
[EndTime "13:36:43 PDT"]
[Termination "Blitzstream won by resignation"]

1. e4 {[%clk 0:03:01.8]} 1... d5 {[%clk 0:03:00]} 2. exd5 {[%clk 0:03:02.2]}
2... Qxd5 {[%clk 0:03:01.2]} 3. Nc3 {[%clk 0:03:03.6]} 3... Qa5 {[%clk
0:03:02.2]} 4. d4 {[%clk 0:03:04.7]} 4... Nf6 {[%clk 0:03:02.9]} 5. Nf3 {[%clk
0:03:05.8]} 5... c6 {[%clk 0:03:03.3]} 6. h3 {[%clk 0:03:06.1]} 6... Bf5 {[%clk
0:03:03.5]} 7. g4 {[%clk 0:03:06.5]} 7... Bg6 {[%clk 0:03:03.7]} 8. Ne5 {[%clk
0:03:07.7]} 8... Nbd7 {[%clk 0:03:03.1]} 9. f4 {[%clk 0:03:08.1]} 9... Nxe5
{[%clk 0:02:08.8]} 10. dxe5 {[%clk 0:03:05.6]} 10... Ne4 {[%clk 0:02:08.2]} 11.
Bd2 {[%clk 0:02:51.6]} 11... Nxd2 {[%clk 0:01:54.6]} 12. Qxd2 {[%clk 0:02:50.8]}
12... Rd8 {[%clk 0:01:54.9]} 13. Qe2 {[%clk 0:02:46.1]} 13... e6 {[%clk
0:01:52.7]} 14. Bg2 {[%clk 0:02:42.6]} 14... Bc5 {[%clk 0:01:41.9]} 15. Kf1
{[%clk 0:02:07.3]} 15... Qb4 {[%clk 0:01:26.6]} 16. Ne4 {[%clk 0:02:04.7]} 16...
Bxe4 {[%clk 0:01:25]} 17. Qxe4 {[%clk 0:01:57.1]} 17... Rd4 {[%clk 0:01:22.2]}
18. Qe2 {[%clk 0:01:30.2]} 18... Rd2 {[%clk 0:01:17.9]} 19. Qf3 {[%clk
0:01:03.3]} 19... Rf2+ {[%clk 0:01:08.7]} 20. Qxf2 {[%clk 0:01:03.6]} 20... Bxf2
{[%clk 0:01:10.6]} 21. Kxf2 {[%clk 0:01:05.3]} 21... Qxf4+ {[%clk 0:01:11.4]}
22. Bf3 {[%clk 0:01:05.8]} 22... Qxe5 {[%clk 0:01:12.3]} 23. c3 {[%clk
0:01:05.8]} 23... Ke7 {[%clk 0:01:11.4]} 24. Rhe1 {[%clk 0:01:05.3]} 24... Qh2+
{[%clk 0:01:12.1]} 25. Bg2 {[%clk 0:01:06.3]} 25... Rd8 {[%clk 0:01:12.5]} 26.
Re2 {[%clk 0:01:05.4]} 26... Qf4+ {[%clk 0:01:12.2]} 27. Kg1 {[%clk 0:01:02]}
27... Rd2 {[%clk 0:01:12.7]} 28. Rf1 {[%clk 0:01:03.3]} 28... Qd6 {[%clk
0:01:09.9]} 29. Rxd2 {[%clk 0:00:37.6]} 29... Qxd2 {[%clk 0:01:11.8]} 30. Rf2
{[%clk 0:00:38.5]} 30... Qe3 {[%clk 0:01:12.6]} 31. Bf1 {[%clk 0:00:37.3]} 31...
g6 {[%clk 0:01:10.2]} 32. Kg2 {[%clk 0:00:34.9]} 32... Qe4+ {[%clk 0:01:08.5]}
33. Kg1 {[%clk 0:00:26.8]} 33... f5 {[%clk 0:01:09.1]} 34. Bg2 {[%clk
0:00:20.2]} 34... Qb1+ {[%clk 0:01:08.2]} 35. Kh2 {[%clk 0:00:19.9]} 35... Qxa2
{[%clk 0:01:08.9]} 36. Kg3 {[%clk 0:00:17.4]} 36... a5 {[%clk 0:01:08.1]} 37. h4
{[%clk 0:00:12.5]} 37... Qc4 {[%clk 0:01:05.9]} 38. Bf3 {[%clk 0:00:12.9]} 38...
e5 {[%clk 0:01:02.4]} 39. Be2 {[%clk 0:00:13.6]} 39... Qe6 {[%clk 0:01:00.8]}
40. h5 {[%clk 0:00:09.7]} 40... f4+ {[%clk 0:00:52.3]} 41. Kg2 {[%clk
0:00:08.5]} 41... g5 {[%clk 0:00:53.7]} 42. Bf3 {[%clk 0:00:08.9]} 42... e4
{[%clk 0:00:54.8]} 43. Bd1 {[%clk 0:00:05.2]} 43... f3+ {[%clk 0:00:54.6]} 44.
Kg3 {[%clk 0:00:04.3]} 44... Qe5+ {[%clk 0:00:55.4]} 45. Kh3 {[%clk 0:00:04.9]}
45... e3 {[%clk 0:00:49.3]} 46. Rxf3 {[%clk 0:00:04.8]} 46... e2 {[%clk
0:00:50.6]} 47. Bxe2 {[%clk 0:00:05.9]} 47... Qxe2 {[%clk 0:00:51.7]} 48. Rg3
{[%clk 0:00:05.9]} 48... Qxb2 {[%clk 0:00:51.8]} 49. c4 {[%clk 0:00:07.6]} 49...
a4 {[%clk 0:00:52.5]} 50. c5 {[%clk 0:00:08.7]} 50... a3 {[%clk 0:00:51.8]} 51.
h6 {[%clk 0:00:09.8]} 51... a2 {[%clk 0:00:45.8]} 52. Re3+ {[%clk 0:00:10.6]}
52... Kf7 {[%clk 0:00:45.9]} 53. Rf3+ {[%clk 0:00:11.1]} 53... Qf6 {[%clk
0:00:41.7]} 54. Rf2 {[%clk 0:00:09.5]} 54... a1=Q {[%clk 0:00:38.9]} 55. Rb2
{[%clk 0:00:05.9]} 55... Qh1+ {[%clk 0:00:37.9]} 0-1

[Event "*** Biggest EVER Titled Tuesday"]
[Site "Chess.com"]
[Date "2018.04.17"]
[Round "3"]
[White "MrRooke6"]
[Black "AvitalBor"]
[Result "0-1"]
[WhiteElo "2402"]
[BlackElo "2586"]
[TimeControl "180+2"]
[EndTime "13:36:49 PDT"]
[Termination "AvitalBor won by resignation"]

1. e4 {[%clk 0:03:01.9]} 1... e5 {[%clk 0:02:59.2]} 2. Nf3 {[%clk 0:03:02.9]}
2... Nc6 {[%clk 0:02:58.4]} 3. Bb5 {[%clk 0:03:03.7]} 3... Nf6 {[%clk
0:02:58.1]} 4. d3 {[%clk 0:03:02.5]} 4... Bc5 {[%clk 0:02:56.8]} 5. O-O {[%clk
0:03:03.3]} 5... Nd4 {[%clk 0:02:55.4]} 6. Nxd4 {[%clk 0:03:02.9]} 6... Bxd4
{[%clk 0:02:57.3]} 7. c3 {[%clk 0:03:03.6]} 7... Bb6 {[%clk 0:02:58.2]} 8. Nd2
{[%clk 0:02:54.2]} 8... O-O {[%clk 0:02:57.3]} 9. Nf3 {[%clk 0:02:51.6]} 9... c6
{[%clk 0:02:52.6]} 10. Ba4 {[%clk 0:02:52]} 10... d5 {[%clk 0:02:42.4]} 11. Qe2
{[%clk 0:02:23.3]} 11... Bg4 {[%clk 0:02:37.4]} 12. h3 {[%clk 0:02:23.8]} 12...
Bh5 {[%clk 0:02:37.3]} 13. Bg5 {[%clk 0:02:18.4]} 13... h6 {[%clk 0:02:36.2]}
14. Bh4 {[%clk 0:02:19.3]} 14... Re8 {[%clk 0:02:33.1]} 15. Rad1 {[%clk
0:02:18.5]} 15... Qd6 {[%clk 0:02:28.6]} 16. g4 {[%clk 0:02:13.1]} 16... Nxg4
{[%clk 0:01:58.1]} 17. hxg4 {[%clk 0:02:13.6]} 17... Bxg4 {[%clk 0:02:00]} 18.
Kg2 {[%clk 0:02:11.8]} 18... Qg6 {[%clk 0:01:59.3]} 19. Bg3 {[%clk 0:02:11.3]}
19... f5 {[%clk 0:01:58.6]} 20. exf5 {[%clk 0:01:56.4]} 20... Qxf5 {[%clk
0:01:54.9]} 21. Rde1 {[%clk 0:01:53.5]} 21... Rf8 {[%clk 0:01:51.2]} 22. Bd1
{[%clk 0:01:53.3]} 22... Rae8 {[%clk 0:01:45.5]} 23. Rh1 {[%clk 0:01:41]} 23...
e4 {[%clk 0:01:43]} 24. dxe4 {[%clk 0:01:42]} 24... Rxe4 {[%clk 0:01:00.2]} 25.
Qd3 {[%clk 0:01:40.9]} 25... Qe6 {[%clk 0:00:39.9]} 26. Qd2 {[%clk 0:01:22.1]}
26... Qf6 {[%clk 0:00:25.4]} 27. Rxe4 {[%clk 0:00:35.9]} 27... dxe4 {[%clk
0:00:27.3]} 28. Nd4 {[%clk 0:00:37]} 28... Bd7 {[%clk 0:00:26.6]} 29. Bb3+
{[%clk 0:00:35.3]} 29... Kh8 {[%clk 0:00:26.1]} 30. Qe2 {[%clk 0:00:28.6]} 30...
c5 {[%clk 0:00:25.1]} 31. Nc2 {[%clk 0:00:29.3]} 31... Qg6 {[%clk 0:00:21.5]}
32. Ne3 {[%clk 0:00:29.2]} 32... Rf3 {[%clk 0:00:19.9]} 33. Qc4 {[%clk
0:00:23.2]} 33... Rf8 {[%clk 0:00:14.2]} 34. Rd1 {[%clk 0:00:23.8]} 34... Bg4
{[%clk 0:00:14.3]} 35. Rd6 {[%clk 0:00:23.3]} 35... Bf3+ {[%clk 0:00:14.6]} 36.
Kf1 {[%clk 0:00:21.2]} 36... Qh5 {[%clk 0:00:14.3]} 37. Ke1 {[%clk 0:00:20.9]}
37... Bc7 {[%clk 0:00:13.7]} 38. Rd5 {[%clk 0:00:09.4]} 38... Qh1+ {[%clk
0:00:13.4]} 39. Nf1 {[%clk 0:00:10.4]} 39... Bxg3 {[%clk 0:00:14.5]} 40. fxg3
{[%clk 0:00:11.4]} 40... Bg4 {[%clk 0:00:10.1]} 41. Rd2 {[%clk 0:00:04.4]} 41...
e3 {[%clk 0:00:08.7]} 42. Rh2 {[%clk 0:00:05.2]} 42... Qg1 {[%clk 0:00:06.9]}
43. Qd3 {[%clk 0:00:04]} 43... e2 {[%clk 0:00:05.4]} 44. Rxe2 {[%clk 0:00:05.1]}
44... Qxf1+ {[%clk 0:00:05.6]} 45. Kd2 {[%clk 0:00:05.8]} 45... Bxe2 {[%clk
0:00:06.3]} 46. Qxe2 {[%clk 0:00:06.7]} 46... Rf2 {[%clk 0:00:06.5]} 0-1

[Event "*** Biggest EVER Titled Tuesday"]
[Site "Chess.com"]
[Date "2018.04.17"]
[Round "3"]
[White "Firouzja2003"]
[Black "daro94"]
[Result "0-1"]
[WhiteElo "2724"]
[BlackElo "2721"]
[TimeControl "180+2"]
[EndTime "13:37:00 PDT"]
[Termination "daro94 won by resignation"]

1. e4 {[%clk 0:03:00]} 1... c5 {[%clk 0:02:56.7]} 2. Nf3 {[%clk 0:03:01.1]} 2...
d6 {[%clk 0:02:57.8]} 3. d4 {[%clk 0:03:01.9]} 3... cxd4 {[%clk 0:02:55.1]} 4.
Nxd4 {[%clk 0:03:03.8]} 4... Nf6 {[%clk 0:02:56.4]} 5. Nc3 {[%clk 0:03:04.4]}
5... a6 {[%clk 0:02:57.7]} 6. h3 {[%clk 0:03:01.6]} 6... e5 {[%clk 0:02:55.2]}
7. Nb3 {[%clk 0:03:02.3]} 7... Be6 {[%clk 0:02:52.3]} 8. f4 {[%clk 0:03:03.3]}
8... g6 {[%clk 0:02:46.6]} 9. Be2 {[%clk 0:03:04]} 9... Nbd7 {[%clk 0:02:30.8]}
10. O-O {[%clk 0:03:04.8]} 10... Rc8 {[%clk 0:02:32.1]} 11. Be3 {[%clk
0:03:04.9]} 11... exf4 {[%clk 0:02:16.1]} 12. Bxf4 {[%clk 0:02:58.1]} 12... Be7
{[%clk 0:02:10.6]} 13. Kh1 {[%clk 0:02:43.4]} 13... Ne5 {[%clk 0:02:05.6]} 14.
Nd4 {[%clk 0:02:39.9]} 14... O-O {[%clk 0:01:48.4]} 15. Bh6 {[%clk 0:02:30.4]}
15... Re8 {[%clk 0:01:49.6]} 16. Nxe6 {[%clk 0:02:29.3]} 16... fxe6 {[%clk
0:01:50.7]} 17. Qd2 {[%clk 0:02:24.4]} 17... Qb6 {[%clk 0:01:35.4]} 18. Rab1
{[%clk 0:02:14]} 18... Qc6 {[%clk 0:01:22.3]} 19. Qe3 {[%clk 0:01:57]} 19... b5
{[%clk 0:01:20.2]} 20. a3 {[%clk 0:01:54.9]} 20... Nfd7 {[%clk 0:00:54.3]} 21.
Rbd1 {[%clk 0:01:40.2]} 21... Bf8 {[%clk 0:00:52.3]} 22. Bxf8 {[%clk 0:01:35.6]}
22... Rxf8 {[%clk 0:00:53.5]} 23. Qd4 {[%clk 0:01:36.6]} 23... Rxf1+ {[%clk
0:00:54.2]} 24. Bxf1 {[%clk 0:01:38.5]} 24... Nf7 {[%clk 0:00:47]} 25. Be2
{[%clk 0:01:27.8]} 25... Nde5 {[%clk 0:00:47.9]} 26. Qf2 {[%clk 0:01:20.6]}
26... Rf8 {[%clk 0:00:33.6]} 27. Qf6 {[%clk 0:01:19.6]} 27... Qe8 {[%clk
0:00:28.3]} 28. Qf2 {[%clk 0:01:04.6]} 28... Qc6 {[%clk 0:00:28.2]} 29. Qa7
{[%clk 0:01:00.9]} 29... Nd7 {[%clk 0:00:07.1]} 30. Bg4 {[%clk 0:00:59.2]} 30...
Re8 {[%clk 0:00:08.1]} 31. Nd5 {[%clk 0:00:29.8]} 31... exd5 {[%clk 0:00:09.3]}
32. Bxd7 {[%clk 0:00:30.7]} 32... Qxc2 {[%clk 0:00:10.9]} 33. Rf1 {[%clk
0:00:31.7]} 33... Re7 {[%clk 0:00:08.2]} 34. exd5 {[%clk 0:00:18.8]} 34... Qe2
{[%clk 0:00:04.8]} 35. Rg1 {[%clk 0:00:10.8]} 35... Kg7 {[%clk 0:00:06]} 36.
Qd4+ {[%clk 0:00:09.5]} 36... Qe5 {[%clk 0:00:07.6]} 37. Qxe5+ {[%clk
0:00:10.6]} 37... Nxe5 {[%clk 0:00:09.2]} 38. Be6 {[%clk 0:00:12.5]} 38... Rc7
{[%clk 0:00:10]} 39. Rf1 {[%clk 0:00:05.6]} 39... Rc2 {[%clk 0:00:10.9]} 40. b4
{[%clk 0:00:06.5]} 40... Rc3 {[%clk 0:00:12.2]} 41. Kh2 {[%clk 0:00:07.3]} 41...
h5 {[%clk 0:00:11.6]} 42. Ra1 {[%clk 0:00:06.7]} 42... h4 {[%clk 0:00:11.9]} 43.
a4 {[%clk 0:00:07.5]} 43... Rb3 {[%clk 0:00:11.2]} 44. axb5 {[%clk 0:00:09.4]}
44... axb5 {[%clk 0:00:12.9]} 45. Ra6 {[%clk 0:00:09]} 45... Nc4 {[%clk
0:00:12.8]} 46. Bd7 {[%clk 0:00:03.3]} 46... Rxb4 {[%clk 0:00:13.3]} 47. Ra7
{[%clk 0:00:04.4]} 47... Kf6 {[%clk 0:00:14.2]} 48. Be6 {[%clk 0:00:05]} 48...
Rb2 {[%clk 0:00:13.4]} 49. Rf7+ {[%clk 0:00:02.7]} 49... Ke5 {[%clk 0:00:14.4]}
50. Rh7 {[%clk 0:00:02.9]} 50... Nd2 {[%clk 0:00:15.6]} 51. Kg1 {[%clk
0:00:03.1]} 51... g5 {[%clk 0:00:16.5]} 52. Rf7 {[%clk 0:00:03.4]} 52... Ne4
{[%clk 0:00:17.3]} 53. Bg4 {[%clk 0:00:03.8]} 53... Rb1+ {[%clk 0:00:17]} 0-1

[Event "*** Biggest EVER Titled Tuesday"]
[Site "Chess.com"]
[Date "2018.04.17"]
[Round "3"]
[White "Bigfish1995"]
[Black "jlucasvf"]
[Result "1-0"]
[WhiteElo "2775"]
[BlackElo "2090"]
[TimeControl "180+2"]
[EndTime "13:37:00 PDT"]
[Termination "Bigfish1995 won by checkmate"]

1. e4 {[%clk 0:03:01.9]} 1... e5 {[%clk 0:03:00.6]} 2. Nf3 {[%clk 0:03:02.9]}
2... Nc6 {[%clk 0:03:01.4]} 3. Bc4 {[%clk 0:03:04.4]} 3... Bc5 {[%clk
0:03:01.6]} 4. c3 {[%clk 0:03:05.4]} 4... Nf6 {[%clk 0:03:02.8]} 5. d3 {[%clk
0:03:05.6]} 5... O-O {[%clk 0:03:03.5]} 6. O-O {[%clk 0:03:06.6]} 6... d6 {[%clk
0:03:02.8]} 7. h3 {[%clk 0:03:07.8]} 7... Ne7 {[%clk 0:03:00.7]} 8. d4 {[%clk
0:03:06.3]} 8... Bb6 {[%clk 0:02:59.1]} 9. Re1 {[%clk 0:03:06.6]} 9... Ng6
{[%clk 0:02:50.2]} 10. Bd3 {[%clk 0:03:02.4]} 10... c6 {[%clk 0:02:47.3]} 11.
Be3 {[%clk 0:03:02]} 11... Nh5 {[%clk 0:02:43.3]} 12. Nbd2 {[%clk 0:02:57.5]}
12... Nhf4 {[%clk 0:02:44.2]} 13. Bf1 {[%clk 0:02:58.2]} 13... exd4 {[%clk
0:02:44.2]} 14. cxd4 {[%clk 0:02:58.2]} 14... d5 {[%clk 0:02:45.5]} 15. g3
{[%clk 0:02:42.7]} 15... dxe4 {[%clk 0:02:26.7]} 16. Nxe4 {[%clk 0:02:40.6]}
16... Nd5 {[%clk 0:02:18.8]} 17. Nc5 {[%clk 0:02:33.8]} 17... Nxe3 {[%clk
0:02:10.7]} 18. Rxe3 {[%clk 0:02:33.3]} 18... Re8 {[%clk 0:02:06.1]} 19. Qb3
{[%clk 0:02:24.2]} 19... Rxe3 {[%clk 0:02:04.3]} 20. Qxe3 {[%clk 0:02:25]} 20...
Bxc5 {[%clk 0:02:02.8]} 21. dxc5 {[%clk 0:02:24.3]} 21... Be6 {[%clk 0:02:04.2]}
22. Bg2 {[%clk 0:02:10.3]} 22... Qf6 {[%clk 0:02:03.6]} 23. Nd4 {[%clk
0:02:10.4]} 23... Bd7 {[%clk 0:02:00.7]} 24. Qc3 {[%clk 0:02:04.7]} 24... Rd8
{[%clk 0:01:54.4]} 25. Rd1 {[%clk 0:01:57.8]} 25... Be6 {[%clk 0:01:52.6]} 26.
b3 {[%clk 0:01:56.6]} 26... Ne5 {[%clk 0:01:52.6]} 27. f4 {[%clk 0:01:48.1]}
27... Ng6 {[%clk 0:01:48.2]} 28. Kh2 {[%clk 0:01:40.2]} 28... Ne7 {[%clk
0:01:38]} 29. Qa5 {[%clk 0:01:10.8]} 29... Nc8 {[%clk 0:01:22.1]} 30. Rd2 {[%clk
0:00:54.6]} 30... Rxd4 {[%clk 0:01:12.7]} 31. Re2 {[%clk 0:00:52.6]} 31... Qd8
{[%clk 0:01:12]} 32. Qc3 {[%clk 0:00:46.6]} 32... Ne7 {[%clk 0:01:13.1]} 33. h4
{[%clk 0:00:31.4]} 33... Bg4 {[%clk 0:01:10.2]} 34. Rxe7 {[%clk 0:00:31]} 34...
Qxe7 {[%clk 0:01:03]} 35. Qxd4 {[%clk 0:00:31.3]} 35... Kf8 {[%clk 0:01:04.2]}
36. Be4 {[%clk 0:00:21.9]} 36... f5 {[%clk 0:00:59.2]} 37. Bd3 {[%clk
0:00:22.9]} 37... Bf3 {[%clk 0:00:50.9]} 38. Bc4 {[%clk 0:00:14.1]} 38... h6
{[%clk 0:00:44.1]} 39. b4 {[%clk 0:00:09.5]} 39... Be4 {[%clk 0:00:43.1]} 40.
Kg1 {[%clk 0:00:09.9]} 40... Bf3 {[%clk 0:00:35.3]} 41. Kf2 {[%clk 0:00:10.5]}
41... Be4 {[%clk 0:00:35.9]} 42. a4 {[%clk 0:00:11.3]} 42... a6 {[%clk
0:00:36.4]} 43. Bb3 {[%clk 0:00:10.8]} 43... Ke8 {[%clk 0:00:36.4]} 44. h5
{[%clk 0:00:09.5]} 44... Qd7 {[%clk 0:00:35.7]} 45. Ke3 {[%clk 0:00:08.8]} 45...
Qe7 {[%clk 0:00:34.8]} 46. Qe5 {[%clk 0:00:06.6]} 46... Bg2 {[%clk 0:00:32.3]}
47. Be6 {[%clk 0:00:05.6]} 47... Be4 {[%clk 0:00:24.6]} 48. Kd4 {[%clk
0:00:03.9]} 48... Qd8+ {[%clk 0:00:25.9]} 49. Kc3 {[%clk 0:00:03.4]} 49... Qd3+
{[%clk 0:00:26.6]} 50. Kb2 {[%clk 0:00:04.8]} 50... Qc2+ {[%clk 0:00:27.9]} 51.
Ka3 {[%clk 0:00:06]} 51... Qc1+ {[%clk 0:00:28.4]} 52. Qb2 {[%clk 0:00:07]}
52... Qe3+ {[%clk 0:00:29.6]} 53. Qb3 {[%clk 0:00:05.1]} 53... Qc1+ {[%clk
0:00:30.8]} 54. Qb2 {[%clk 0:00:06.1]} 54... Qe1 {[%clk 0:00:32.4]} 55. Qe5
{[%clk 0:00:06.6]} 55... Qxg3+ {[%clk 0:00:32.2]} 56. Bb3+ {[%clk 0:00:07.6]}
56... Kf8 {[%clk 0:00:25.1]} 57. Qb8+ {[%clk 0:00:09.2]} 57... Ke7 {[%clk
0:00:25.2]} 58. Qxb7+ {[%clk 0:00:10.8]} 58... Kf6 {[%clk 0:00:26.6]} 59. Qf7#
{[%clk 0:00:11.6]} 1-0